Cogmind - Beta 10.2 @@@ ROGUE MODE // 2020.10.31 @ 16:33:32 // Halloween2020/ForbiddenLore Player: blelm Result: Destroyed by 8R-AWN with 8R-AWN's Boregun Performance ------------- Evolutions (1) 500 Regions Visited (5) 1000 Robots Destroyed (62) 310 Value Destroyed (1622) 1622 Prototype IDs (23) 460 Alien Tech Used (0) 0 Bonus (282) 282 TOTAL SCORE: 4174 Bonus ------- Aligned with FarCom 300 Friendly Fire -18 Cogmind --------- Core Integrity 0/400 Matter 93/300 Energy 98/100 System Corruption 4% Temperature Cool (0) Movement Core (50) Location -9/Exiles Parts ------- > --- POWER (1) -------- (None) > --- PROPULSION (3) --- (None) > --- UTILITY (3) ------ (None) > --- WEAPON (2) ------- Axe > --- INVENTORY (4) ---- High-capacity Matter Pod (200) AWS/Thermal Grenade Launcher Peak State ------------ > --- POWER ------------ Ion Engine > --- PROPULSION ------- Light Treads Light Treads Light Treads > --- UTILITY ---------- High-capacity Storage Unit Hardened Light Armor Plating Hardened Light Armor Plating > --- WEAPON ----------- AWS/Thermal > --- INVENTORY -------- Light Ion Engine Light Treads Light Treads High-capacity Matter Pod High-capacity Matter Pod Assault Rifle Assault Rifle Grenade Launcher Axe [Rating: 26] Favorites ----------- Power Ion Engine Engine Ion Engine Power Core Light Nuclear Core Propulsion Light Treads Treads Light Treads Leg Aluminum Leg Wheel Compact Wheel Utility High-capacity Storage Unit Storage High-capacity Storage Unit Protection Hardened Light Armor Plating Weapon Assault Rifle Energy Gun AWS/Thermal Ballistic Gun Assault Rifle Ballistic Cannon Assault Cannon Launcher Grenade Launcher Slashing Weapon Axe Build | -11 -10 -10 -9 -9 -9 ------- Run | Scr Mat Min Mat Min Exi Slots Evolved 2 | . . . 2 . . Power . | . . . . . . Propulsion 1 | . . . 1 . . Utility 1 | . . . 1 . . Weapon . | . . . . . . Parts Attached 42 | 3 12 7 9 1 10 Power 7 | . 2 2 2 . 1 Engine 6 | . 2 1 2 . 1 Core 1 | . . 1 . . . Reactor . | . . . . . . Propulsion 10 | 2 1 1 3 1 2 Treads 9 | 1 1 1 3 1 2 Leg . | . . . . . . Wheel 1 | 1 . . . . . Hover . | . . . . . . Flight . | . . . . . . Utility 10 | 1 5 . 3 . 1 Device . | . . . . . . Storage 6 | 1 5 . . . . Processor . | . . . . . . Hackware . | . . . . . . Protection 4 | . . . 3 . 1 Artifact . | . . . . . . Weapon 15 | . 4 4 1 . 6 Energy Gun 1 | . . . . . 1 Energy Cannon . | . . . . . . Ballistic Gun 10 | . 3 3 1 . 3 Ballistic Cannon 1 | . . 1 . . . Launcher 1 | . . . . . 1 Special Weapon . | . . . . . . Impact Weapon . | . . . . . . Slashing Weapon 2 | . 1 . . . 1 Piercing Weapon . | . . . . . . Special Melee Weapon . | . . . . . . Unidentified Prototypes . | . . . . . . Parts Lost 23 | . 4 3 5 . 11 Power 7 | . 2 1 2 . 2 Propulsion 7 | . . 1 1 . 5 Utility 3 | . . . 1 . 2 Weapon 6 | . 2 1 1 . 2 Highest Loss Streak 9 | . 2 1 2 . 9 Average Slot Usage (%) 97 | . 99 99 95 99 95 Engine 10 | . 13 6 8 11 10 Core 1 | . . 7 2 . . Treads 27 | . 21 28 29 32 31 Wheel 1 | . 7 . . . . Storage 23 | . 28 28 22 22 16 Protection 7 | . . . 11 11 14 Ballistic Gun 17 | . 27 22 11 11 10 Ballistic Cannon 4 | . . 5 11 11 2 Launcher 1 | . . . . . 6 Naked Turns . | . . . . . . Heaviest Build 81 | 17 73 76 81 81 81 Greatest Support 60 | 20 40 40 60 60 60 Greatest Overweight (x) 2 | . 2 1 1 2 1 Average Overweight (x) . | . . 1 1 1 . Largest Inventory Capacity 20 | 8 20 20 20 20 20 Average Capacity 17 | 6 13 20 20 20 16 Most Carried 19 | 6 14 18 16 15 19 Average Carried 12 | 3 8 14 13 14 13 Final Capacity 20 | 8 20 20 20 20 4 Final Carried 15 | 3 12 14 15 15 4 Class Distribution -------------------- 64% | Hauler-Mutant 35% | Mutant Dominant Class ---------------- Mutant | -10/Materials Hauler-Mutant | -10/Mines Hauler-Mutant | -9/Materials Hauler-Mutant | -9/Mines Hauler-Mutant | -9/Exiles Resources | -11 -10 -10 -9 -9 -9 ----------- Run | Scr Mat Min Mat Min Exi Matter Collected 1863 | 226 458 262 508 148 261 Remotely . | . . . . . . Salvage Created 1665 | 77 502 369 620 90 7 Parts 112 | 3 35 22 42 10 . Haulers Intercepted 1 | . 1 . . . . Recyclers Shooed 4 | 1 1 1 1 . . Parts Field Recycled . | . . . . . . Retrieved Matter . | . . . . . . Parts Self-Destructed . | . . . . . . Prevented . | . . . . . . Kills | -11 -10 -10 -9 -9 -9 ------- Run | Scr Mat Min Mat Min Exi Combat Hostiles Destroyed 51 | . 11 13 19 4 4 Guns 30 | . 11 10 6 1 2 Cannons 18 | . . 2 13 3 . AOE 3 | . . 1 . . 2 Classes Destroyed 11 | 1 4 2 2 1 1 Worker 1 | . . . . 1 . Builder 1 | . . . 1 . . Hauler 1 | . 1 . . . . Recycler 1 | 1 . . . . . Operator 4 | . 2 . 2 . . Watcher 3 | . 2 . 1 . . Swarmer 12 | . . 6 3 3 . Grunt 26 | . 11 5 9 1 . Brawler 2 | . . . 2 . . Sentry 7 | . . 2 5 . . Assembled 4 | . . . . . 4 Best Kill Streak 5 | 1 5 3 4 3 4 Combat Bots Only 5 | . 5 3 3 3 4 Max Kills in Single Turn 1 | 1 1 1 1 1 1 Gunslinging . | . . . . . . Exploded 1 | . . 1 . . 1 Melee . | . . . . . . Uniques/NPCs Destroyed . | . . . . . . Combat | -11 -10 -10 -9 -9 -9 -------- Run | Scr Mat Min Mat Min Exi Damage Taken 3662 | . 695 536 796 49 1586 Core 590 | . 126 63 109 8 284 Absorbed by Shields . | . . . . . . Core Remaining (%) 62 | 100 . 24 . . . Volleys Fired 196 | 2 58 26 66 5 39 Largest 2 | 2 2 2 2 2 2 Hottest 64 | 60 40 64 64 64 40 Shots Fired 418 | 4 116 51 130 10 107 Gun 329 | 4 116 40 64 5 100 Cannon 82 | . . 11 66 5 . Launcher 7 | . . . . . 7 Special . | . . . . . . Kinetic 369 | 2 116 51 130 10 60 Thermal 40 | . . . . . 40 Explosive 7 | . . . . . 7 Electromagnetic 2 | 2 . . . . . Robot Hit Streak 20 | 2 12 10 16 8 20 Robot Miss Streak 3 | 1 3 3 3 2 3 Penetration Max . | . . . . . . Secondary Targets 1 | . 1 . . . . Max Gunslinging Chain 1 | . 1 . . . . Autonomous 40 | . . . . . 40 Shots Hit Robots 324 | 3 81 34 94 6 106 Core Hits 123 | 2 32 22 35 6 26 Critical Hits 7 | . 3 2 2 . . Critical Kills 2 | . 2 . . . . Critical Parts Destroyed 5 | . 1 2 2 . . Melee Attacks 23 | . 1 . . . 22 Impact . | . . . . . . Slashing 23 | . 1 . . . 22 Piercing . | . . . . . . Sneak Attacks . | . . . . . . Combat Hostiles . | . . . . . . Follow-up Attacks . | . . . . . . Damage Inflicted 5335 | 37 1007 615 1824 179 1673 Guns 2917 | 37 997 413 663 41 766 Cannons 1318 | . . 129 1083 106 . Explosions 238 | . . 64 . . 174 Melee 733 | . . . . . 733 Ramming 129 | . 10 9 78 32 . Kinetic 4072 | 11 997 542 1746 147 629 Thermal 201 | . . 64 . . 137 Explosive 174 | . . . . . 174 Electromagnetic 26 | 26 . . . . . Impact . | . . . . . . Slashing 733 | . . . . . 733 Piercing . | . . . . . . Highest Corruption 4 | . . . 4 4 4 Average Corruption 4 | . . . 4 4 4 Corruption Purged . | . . . . . . Effects 52 | . . . 15 6 31 Message Errors 6 | . . . 1 1 4 Matter Fused 15 | . . . 4 1 10 Heat Flow Errors 11 | . . . 1 . 10 Energy Discharges 3 | . . . 1 1 1 Parts Rejected 1 | . . . . 1 . Data Loss (minor) 8 | . . . 1 2 5 Targeting Errors 6 | . . . 5 . 1 Weapon Failures 2 | . . . 2 . . Overload Shots . | . . . . . . Overflow Damage 65 | . . 12 47 . 6 Projectiles 59 | . . 12 47 . . Explosions 6 | . . . . . 6 Melee . | . . . . . . Knockbacks 6 | . . 1 5 . . Impact 1 | . . . 1 . . Kinetic 5 | . . 1 4 . . Secondary . | . . . . . . Self-Inflicted Damage 65 | . 2 . . . 63 Shots 2 | . . . . . 2 Rammed 11 | . 2 1 7 1 . Targets Rammed 12 | . 2 1 7 2 . Kicked . | . . . . . . Crushed 1 | . . . . 1 . Highest Temperature 267 | . 2 45 267 27 257 Average Temperature 57 | . 2 18 32 12 116 Received Heat Transfer 783 | . 381 168 228 6 . Siege Activations . | . . . . . . Robots Corrupted . | . . . . . . Combat Hostiles . | . . . . . . Parts Fried . | . . . . . . Impact Corruptions 1 | . . . 1 . . Robots Melted . | . . . . . . Combat Hostiles . | . . . . . . Parts Melted . | . . . . . . Heat Transferred 480 | . . 100 . . 380 Parts Sabotaged . | . . . . . . Parts Stolen . | . . . . . . Parts Stripped . | . . . . . . Power Chain Reactions . | . . . . . . Missiles Intercepted . | . . . . . . Alert | -11 -10 -10 -9 -9 -9 ------- Run | Scr Mat Min Mat Min Exi Peak Influence 346 | 5 177 275 346 220 . Initial 100 | . 3 . 48 100 . Average 109 | 2 66 95 171 133 . Maximum Alert Level 1 | . . 1 1 1 . Low Security (%) 81 | 100 100 83 55 85 . Level 1 18 | . . 16 44 14 . Level 2 . | . . . . . . Level 3 . | . . . . . . Level 4 . | . . . . . . Level 5 . | . . . . . . High Security . | . . . . . . Max Security . | . . . . . . Squads Dispatched 8 | . 5 . 3 . . Investigation 3 | . 3 . . . . Extermination . | . . . . . . Reinforcement 5 | . 2 . 3 . . Assault . | . . . . . . Garrison . | . . . . . . Intercept . | . . . . . . Construction Impeded . | . . . . . . Haulers Reinforced . | . . . . . . Stealth | -11 -10 -10 -9 -9 -9 --------- Run | Scr Mat Min Mat Min Exi Distress Signals 4 | . . . 4 . . Communications Jammed . | . . . . . . Distress Signals . | . . . . . . Times Spotted 94 | . 31 15 37 5 6 Peak Tracking Total 9 | . 5 5 5 3 9 Tactical Retreats 12 | . 7 1 4 . . Traps | -11 -10 -10 -9 -9 -9 ------- Run | Scr Mat Min Mat Min Exi Traps Triggered 2 | . 2 . . . . Indirectly . | . . . . . . Trap Hack Attempts . | . . . . . . Triggered . | . . . . . . Disarmed . | . . . . . . Reprogrammed . | . . . . . . Reused . | . . . . . . Traps Extracted . | . . . . . . Installed . | . . . . . . Triggered . | . . . . . . Exploded 3 | . . . . . 3 Machines | -11 -10 -10 -9 -9 -9 ---------- Run | Scr Mat Min Mat Min Exi Machines Disabled 9 | . . 2 1 1 5 Max in Single Turn 2 | . . 2 1 1 1 Machines Sabotaged . | . . . . . . Garrisons Compromised . | . . . . . . Overloaded Fab Kills . | . . . . . . Fab Network Shutdowns . | . . . . . . Hacking | -11 -10 -10 -9 -9 -9 --------- Run | Scr Mat Min Mat Min Exi Machines Accessed 13 | . 6 2 3 . 2 Terminals 7 | . 5 . 2 . . Fabricators . | . . . . . . Repair Stations 1 | . . . 1 . . Recycling Units 1 | . 1 . . . . Scanalyzers . | . . . . . . Garrison Access . | . . . . . . Total Hacks 30 | . 15 2 11 . 2 Successful 15 | . 5 2 6 . 2 Failed 14 | . 9 . 5 . . Catastrophic 2 | . . . 2 . . Database Lockouts 1 | . 1 . . . . Manual 19 | . 11 . 7 . 1 Terminals 22 | . 13 . 9 . . Fabricators . | . . . . . . Repair Stations 2 | . . . 2 . . Recycling Units 2 | . 2 . . . . Scanalyzers . | . . . . . . Garrison Access . | . . . . . . Terminal Hacks 9 | . 3 2 2 . 2 Record 1 | . . . . . 1 Robot Analysis 2 | . 1 . 1 . . Open Door 2 | . . 2 . . . Unreport Threat 1 | . . . 1 . . Hauler Manifests 1 | . 1 . . . . Zone Layout 1 | . 1 . . . . EX-Prototype ID Bank 1 | . . . . . 1 Fabricator Hacks . | . . . . . . Repair Station Hacks 2 | . . . 2 . . Scan Component 1 | . . . 1 . . Repair 1 | . . . 1 . . Recycling Unit Hacks . | . . . . . . Scanalyzer . | . . . . . . Garrison Access Hacks . | . . . . . . Unauthorized Hacks 4 | . 2 . 2 . . Terminals 4 | . 2 . 2 . . Track 3 | . 2 . 1 . . Operators 1 | . . . 1 . . Fabricators . | . . . . . . Repair Stations . | . . . . . . Recycling Units . | . . . . . . Scanalyzers . | . . . . . . Garrison Access . | . . . . . . Data Cores Recovered 1 | . 1 . . . . Used 1 | . 1 . . . . Hacking Detections 8 | . 6 . 2 . . Full Trace Events 1 | . 1 . . . . Feedback Events . | . . . . . . Feedback Blocked . | . . . . . . Robot Schematics Acquired . | . . . . . . Robots Built . | . . . . . . Matter . | . . . . . . Time . | . . . . . . Total Robot Build Rating . | . . . . . . Part Schematics Acquired . | . . . . . . Parts Built . | . . . . . . Matter . | . . . . . . Time . | . . . . . . Total Part Build Rating . | . . . . . . Parts Repaired 1 | . . . 1 . . Time 26 | . . . 26 . . Parts Recycled . | . . . . . . Recycled Matter . | . . . . . . Retrieved Matter . | . . . . . . Retrieved Components . | . . . . . . Parts Scanalyzed . | . . . . . . Part Schematics Acquired . | . . . . . . Parts Damaged . | . . . . . . Bothacking | -11 -10 -10 -9 -9 -9 ------------ Run | Scr Mat Min Mat Min Exi Used RIF Installer . | . . . . . . Robots Hacked . | . . . . . . Non-combat . | . . . . . . Combat . | . . . . . . Robot Hacks Applied . | . . . . . . Relay Couplers Released . | . . . . . . Robots Rewired . | . . . . . . Allies Hacked . | . . . . . . Hacks Repelled . | . . . . . . Allies | -11 -10 -10 -9 -9 -9 -------- Run | Scr Mat Min Mat Min Exi Total Allies . | . . . . . . Largest Group . | . . . . . . Highest-Rated Group . | . . . . . . Highest-Rated Ally . | . . . . . . Total Orders . | . . . . . . Ally Attacks . | . . . . . . Total Damage . | . . . . . . Kills . | . . . . . . Allies Corrupted . | . . . . . . Allies Melted . | . . . . . . Intel | -11 -10 -10 -9 -9 -9 ------- Run | Scr Mat Min Mat Min Exi Robot Analysis Total 2 | . 1 . 1 . . Derelict Logs Recovered 2 | . . 1 . 1 . Drone Launches . | . . . . . . Drone Recoveries . | . . . . . . Exploration | -11 -10 -10 -9 -9 -9 ------------- Run | Scr Mat Min Mat Min Exi Turns Passed 5040 | 29 1281 889 998 369 1474 Spaces Moved 2429 | 11 718 403 379 189 729 Core 4 | . . . . . 4 Treads 1997 | 11 290 403 379 189 725 Legs . | . . . . . . Wheels 428 | . 428 . . . . Hover . | . . . . . . Flight . | . . . . . . Fastest Speed 50 | 160 100 180 180 180 50 Average Speed 164 | 160 137 180 180 180 171 Slowest Speed 200 | 160 180 180 180 200 180 Overloaded Moves . | . . . . . . Propulsion Burnouts . | . . . . . . Robots Hopped . | . . . . . . Cave-ins Triggered . | . . . . . . Exploration Rate (%) 57 | 2 96 87 41 46 70 Regions Visited 5 Branch Regions 3 Pre-discovered Areas 2 | . . . . 1 1 Known Exits Taken 1 | . . . . 1 . Unknown Exits Taken 4 | 1 1 1 1 . . Scrap Searched 2 | . . 1 . 1 . Spaces Dug 1 | . 1 . . . . Terrain Destroyed 64 | . 1 20 9 . 34 Melee 1 | . 1 . . . . Projectile 14 | . . 3 9 . 2 AOE 49 | . . 17 . . 32 Terrain Rammed . | . . . . . . Walls Destroyed . | . . . . . . Machines Disabled . | . . . . . . Actions | -11 -10 -10 -9 -9 -9 --------- Run | Scr Mat Min Mat Min Exi Total 3046 | 19 892 516 556 206 857 Wait 279 | 1 80 71 89 8 30 Move 2424 | 10 717 402 378 188 729 Hop . | . . . . . . Pick Up 33 | . 14 4 6 1 8 Fast Attach 8 | 1 1 2 3 1 . Attach 23 | 2 4 4 5 . 8 Detach 8 | . 1 3 . . 4 Swap 11 | . 7 1 1 . 2 Drop 29 | 3 7 2 1 1 15 Fire 196 | 2 58 26 66 5 39 Melee 23 | . 1 . . . 22 Ram 1 | . 1 . . . . Kick . | . . . . . . Crush 11 | . 1 1 7 2 . Escape Stasis . | . . . . . . Rewire . | . . . . . . Trap . | . . . . . . Miscellaneous . | . . . . . . Route ------- -11/Scrapyard -10/Materials (discovered 4 exits: *Mat x3 / *Min) -10/Mines (discovered 2 exits: *Mat x2) -9/Materials (discovered 5 exits: *Mat x3 / [*Min x2]) -9/Mines (discovered 3 exits: *Mat / *Exi / [*Zio]) -9/Exiles (discovered 1 exit: [*Min]) History --------- Turn | Location | Event 6 | -11/Scrapyard | Discovered new exit (range 3) 30 | -11/Scrapyard | Entered Materials 210 | -10/Materials | Discovered new exit (range 5) 221 | -10/Materials | Discovered new exit (range 15) 303 | -10/Materials | Build established: Mutant 455 | -10/Materials | Discovered new exit (range 4) 874 | -10/Materials | Discovered new exit (range 16) 1125 | -10/Materials | Central database locked down 1304 | -10/Materials | Core integrity fell below 50% 1311 | -10/Materials | Entered Mines 1322 | -10/Mines | Met a Derelict who couldn't figure out how to use a Trap Extractor 1400 | -10/Mines | Build established: Hauler-Mutant 1586 | -10/Mines | Found the Drone Emporium 1655 | -10/Mines | Found Prototype Device 1707 | -10/Mines | Learned 4 Materials zone layouts 2031 | -10/Mines | Found a hidden stash of uninstalled traps 2175 | -10/Mines | Discovered new exit (range 15) 2198 | -10/Mines | Discovered new exit (range 14) 2200 | -10/Mines | Entered Materials 2200 | -9/Materials | Evolved 2 slots: Propulsion x1, Utility x1 2201 | -9/Materials | Identified exit to Materials 2290 | -9/Materials | Repaired Lgt. Treads 2589 | -9/Materials | Discovered new exit (range 12) 3171 | -9/Materials | Discovered new exit (range 16) 3198 | -9/Materials | Entered Mines 3198 | -9/Mines | Discovered exit to Materials (range 10) 3215 | -9/Mines | Met a Derelict bent on vengeance 3225 | -9/Mines | Identified exit to Exiles 3377 | -9/Mines | A Derelict revealed a hidden shortcut to a safe place 3429 | -9/Mines | Learned location of Storage (-8) 3560 | -9/Mines | Deemed a non-threat by the Exiles lab entrance 3567 | -9/Mines | Entered Exiles 3611 | -9/Exiles | Met 8R-AWN 3641 | -9/Exiles | Met EX-HEX 3802 | -9/Exiles | Met EX-BIN 3822 | -9/Exiles | Aligned with FarCom system 3824 | -9/Exiles | Given EX-Vault access code 3867 | -9/Exiles | Opened EX-Vault 3883 | -9/Exiles | Found AWS/Thermal 3935 | -9/Exiles | Warned to stay clear of 0b10 Research branches 3990 | -9/Exiles | Met EX-DEC 4001 | -9/Exiles | Learned location of Zion (-7) 4332 | -9/Exiles | Discovered new exit (range 12) 4635 | -9/Exiles | Build established: Mutant 4754 | -9/Exiles | Attacked by the Exiles 4927 | -9/Exiles | Core integrity fell below 50% 5025 | -9/Exiles | Core integrity fell below 20% 5041 | -9/Exiles | Destroyed by 8R-AWN with 8R-AWN's Boregun Last Messages --------------- 04993_ Penetrated by HV Slug. 04998_ Critical hit. 04998_ Assault Rifle destroyed. 04998_ Penetrated by HV Slug. 05006_ HV Slug penetrates Machine. 05006_ Penetrated by HV Slug. 05010_ Critical hit. 05010_ Lgt. Treads destroyed. 05010_ Penetrated by HV Slug. 05016_ HV Slug penetrates Earth. 05016_ Dropped Hcp. Storage Unit. 05020_ Penetrated by HV Slug. 05024_ Critical hit. 05024_ Assault Rifle destroyed. 05024_ Penetrated by HV Slug. 05028_ System corrupted: Heat flow error (+283). 05028_ Destroyed Prototype Protection. 05029_ Penetrated by HV Slug. 05034_ HV Slug penetrates Earth. 05041_ Penetrated by HV Slug. Map ----- +----------------------------------------------------+ | ?????????????????????????????????????????????????? | | ?????????????????????????????????????????????????? | | ?????????????????????????????????????????????????? | | ?????????????????????????????????????????????????? | | ?????????????????????????????????????????????????? | | ?????????????????????????????????????????????????? | | ?????????????????????????????????????????????????? | | ?????????????????????????????????????????????????? | | ???#####?????????????????????????????????????????" | | ??## ##???????????????????????????????????????#" | | ??# #???????????????????????????????????????#" | | ??# < #???????????????????????????????????????#" | | ??# ###?????????????????????????????????????#" | | ??# #??????????????????????????????????????# | | ??# !!] #???????????????????????????????????????? | | ???# !=! #???????????????????????????????????????? | | ???# !!! ##??????????????????????????????????????? | | ???## #????????????#######???????????????????? | | ????# #######??????#!!! "#???????????????????? | | ????# #""##?????# "#???????????????????? | | ????## #?????# "#???????????????????? | | ?????##" ##???## ""#????????????####???? | | ?????#"" #####" "#?#?????????? """??? | | ?????#### ##" " # #??????????" """#?? | | ????????## # " g #??????????" #?? | | ?????????#"## @ # #?????????"" #?? | | ?????????####### # ##?????????"" "#?? | | ???????????????## #????????? ""??? | | ?????????######## ###??????????" "???? | | ?????????# !!"" " !! ##?????????# #???? | | ?????????#! ###???### ###?# | | ?????????#! # ""#####X# #"### | | ?????????#! ## """" | | ?????????# !" ; ; ### "" " | | ?????????## #;;;;;; ##?# " | | ???????????# ##???### # | | ???????????# # ##???????#### | | ???????????## # #???????????## | | ???????????# #####????????????## | | ??????????# ##??????????????????##" | | ?????????# #?????????????????????#"" | | ????????? #?????????????????????##" | | ???????? ##??????????????????????#"" | | ??????? ?????????????????????????#""" "" | | ????????????????????????????????#""" """ | | ????????????????????????????????#""" "" | | ????????????????????????????????#"" # | | ????????????????????????????????#""" | | ????????????????????????????????#"" | | ????????????????????????????????##"" | +----------------------------------------------------+ Best States ------------- Heat Dissipation 28 Energy Generation 14 Energy Capacity 250 Matter Stores 300 Matter Capacity 300 Sight Range 16 Terrain Scan Density 10 Armor Coverage 300 Evasion (%) 40 Recoil Reduction 3 Item Schematics ----------------- None Robot Schematics ------------------ None Fabricated ------------ Nothing Alien Tech Used ----------------- None Achievements -------------- None Challenges ------------ None Game ------ Seed SkeletonReactiveSpear Manual? 0 Play Time 00:59:50 Cumulative 23.9 hours Start 2020.10.30 @ 22:15:08 End 2020.10.31 @ 16:33:32 Sessions 5 Manual Loads 0 Difficulty Rogue Special Mode Halloween2020/ForbiddenLore Game No. 20 Rogue 20 Adventurer 0 Explorer 0 Win Type - Total 0 Types 0/0/0/0/0/0/0/0/0 Lore% 15 Gallery% 16 Achievement% 17 Wizard Run 0 Options --------- ASCII 1 Keyboard 1 Movement Vi Keybinds 0 Fullscreen 1 Font 16/Terminus Map View 75x55 Tactical HUD 1 Map Filters NONE Filters NONE Steam 1 RUN: 5209635a-0e83-421e-89fd-424869b93133